bitfinex-derivatives/quotes_BTCF0:USTF0_20240815
["timestamp","ask_amount","ask_price","bid_price","bid_amount"]
[1723751274935,0.087424,57184.0,57181.0,0.42979046]
[1723751275131,0.3608,57186.0,57181.0,0.42979046]
[1723751275343,0.3608,57186.0,57183.0,0.06899046]
[1723751275842,0.00018006,57185.0,57165.0,0.00758891]
[1723751276044,0.3608,57168.0,57165.0,0.16]
[1723751276244,0.448249,57168.0,57164.0,0.00012449]
[1723751276442,0.3608,57168.0,57165.0,0.087453]
[1723751276633,0.3608,57168.0,57164.0,0.00012449]
[1723751276634,0.087444,57171.0,57164.0,0.00012449]
[1723751276837,0.00018006,57185.0,57164.0,0.00012449]
[1723751277245,0.087444,57171.0,57169.0,0.00026214]
[1723751277451,0.448245,57170.0,57169.0,0.00026214]
[1723751278846,0.3608,57170.0,57169.0,0.00026214]
[1723751279037,0.448245,57170.0,57169.0,0.00026214]
[1723751280740,0.087453,57165.0,57164.0,0.00012449]
[1723751281045,0.44845105,57165.0,57164.0,0.00012449]
[1723751281458,0.44845105,57165.0,57149.0,3.77]
[1723751281459,0.087455,57164.0,57154.0,0.087468]
[1723751281655,0.3608,57160.0,57149.0,3.77]
[1723751281953,0.3608,57155.0,57150.0,0.087476]
[1723751282141,0.087464,57158.0,57150.0,0.087476]
[1723751282345,0.087466,57157.0,57150.0,0.087476]
[1723751282641,0.36106238,57160.0,57149.0,0.00026238]
[1723751282642,0.3608,57155.0,57149.0,0.00026238]
[1723751282851,0.448269,57155.0,57149.0,0.00026238]
[1723751283048,0.08747,57154.0,57149.0,0.00026238]
[1723751283252,0.087471,57153.0,57149.0,0.00026238]
[1723751283448,0.3608,57150.0,57149.0,0.00026238]
[1723751283842,0.448276,57150.0,57149.0,0.00026238]
[1723751285550,1.28572,57150.0,57138.0,0.3608]
[1723751285744,0.3608,57139.0,57133.0,0.00020921]
[1723751285944,0.08770539,57138.0,57133.0,0.00020921]
[1723751286146,0.087496,57137.0,57133.0,0.00020921]
[1723751286345,0.00021039,57138.0,57133.0,0.00020921]
[1723751286346,0.087498,57136.0,57133.0,0.00020921]
[1723751286545,0.087499,57135.0,57133.0,0.00020921]
[1723751286947,0.087501,57134.0,57133.0,0.00020921]
[1723751287556,0.448301,57134.0,57133.0,0.00020921]
[1723751287853,0.087507,57130.0,57129.0,0.00026238]
[1723751288241,0.087518,57123.0,57118.0,0.0077154]
[1723751288454,0.3608,57125.0,57110.0,0.3608]
[1723751288652,0.448316,57125.0,57110.0,0.3608]
[1723751288957,0.3608,57125.0,57110.0,0.3608]
[1723751289153,0.3608,57125.0,57116.0,0.087527]
[1723751289355,0.087518,57123.0,57110.0,0.3608]
[1723751289542,0.3608,57125.0,57110.0,0.3608]
[1723751289744,0.3608,57120.0,57112.0,0.00026261]
[1723751289957,0.3608,57120.0,57115.0,0.087528]
[1723751290343,0.3608,57120.0,57112.0,0.00026261]
[1723751290549,0.00026261,57123.0,57116.0,0.3608]
[1723751290747,0.24726579,57125.0,57124.0,0.087516]
[1723751291146,0.24726579,57125.0,57112.0,0.08779561]
[1723751291147,0.448301,57134.0,57127.0,0.087511]
[1723751291547,0.3608,57134.0,57125.0,0.087514]
[1723751291745,0.3608,57134.0,57121.0,0.3608]
[1723751291945,0.27327323,57134.0,57126.0,0.3608]
[1723751292356,0.00026261,57135.0,57133.0,0.3608]
[1723751292559,0.3608,57149.0,57148.0,0.087479]
[1723751292853,0.3608,57149.0,57127.0,0.26250835]
[1723751292854,0.087486,57144.0,57137.0,0.087496]
[1723751293056,0.88576,57149.0,57137.0,0.087496]
[1723751293057,0.3608,57149.0,57137.0,0.087496]
[1723751293258,0.3608,57149.0,57136.0,3.77152]
[1723751293447,0.3608,57149.0,57128.0,0.3608]
[1723751293654,0.00019101,57148.0,57136.0,0.3608]
[1723751293851,0.087488,57143.0,57128.0,0.36835199]
[1723751294054,0.087488,57143.0,57133.0,0.00026261]
[1723751294256,0.087488,57143.0,57133.0,0.36106261]
[1723751294458,0.00026261,57144.0,57133.0,0.36106261]
[1723751294645,0.3608,57143.0,57133.0,0.36106261]
[1723751294852,0.00026261,57144.0,57133.0,0.36106261]
[1723751295149,0.00026261,57144.0,57143.0,0.087487]
[1723751295357,0.00026261,57144.0,57143.0,0.45717809]
[1723751295755,0.00026261,57144.0,57143.0,4.218287]
[1723751295960,0.00026261,57144.0,57143.0,3.77]
[1723751296257,0.08774761,57144.0,57143.0,3.77]
[1723751296464,0.087492,57140.0,57133.0,0.00026261]
[1723751296659,0.00026261,57144.0,57133.0,0.00026261]
[1723751296859,0.00026261,57144.0,57137.0,0.3608]
[1723751297158,0.00019101,57148.0,57142.0,0.3608]
[1723751297351,0.00019101,57148.0,57147.0,0.087481]
[1723751297548,0.00019101,57148.0,57147.0,0.448281]
[1723751297755,0.00019101,57148.0,57147.0,0.3608]
[1723751298054,0.08767001,57148.0,57147.0,3.77]
[1723751298854,0.087487,57143.0,57142.0,0.3608]
[1723751299055,0.087487,57143.0,57135.0,0.3608]
[1723751299056,0.087497,57136.0,57135.0,0.3608]
[1723751299251,0.087501,57134.0,57133.0,0.0078071]
[1723751299461,0.3608,57138.0,57133.0,0.00026261]
[1723751299766,0.3608,57138.0,57133.0,3.77026261]
[1723751300059,0.087496,57137.0,57133.0,3.77026261]
[1723751300264,0.3608,57138.0,57133.0,3.77026261]
[1723751300655,0.00026261,57141.0,57133.0,3.77026261]
[1723751300860,0.00026261,57141.0,57137.0,0.087495]
[1723751301048,0.087501,57134.0,57133.0,3.77194261]
[1723751301257,0.00026261,57141.0,57133.0,3.77026261]
[1723751301457,0.087496,57138.0,57133.0,3.77026261]
[1723751301666,0.00026261,57141.0,57135.0,0.087499]
[1723751301960,0.00026261,57141.0,57133.0,3.77026261]
[1723751301961,0.087501,57134.0,57133.0,3.77190261]
[1723751302157,0.087501,57134.0,57133.0,3.77026261]
[1723751302752,0.087498,57136.0,57133.0,3.77026261]
[1723751303361,0.087493,57139.0,57133.0,3.77026261]
[1723751303759,0.00026261,57141.0,57133.0,3.77026261]
[1723751303968,0.00026261,57141.0,57140.0,0.087491]
[1723751303969,1e-08,57141.0,57140.0,0.087491]
[1723751304162,0.3608,57153.0,57147.0,0.087481]
[1723751304361,0.448272,57153.0,57147.0,0.087481]
[1723751304556,0.245,57156.0,57142.0,0.3608]
[1723751304757,0.087487,57143.0,57142.0,0.3608]
[1723751305053,0.3608,57144.0,57140.0,0.087491]
[1723751305254,0.3608,57144.0,57133.0,3.77178261]
[1723751305255,0.3608,57144.0,57133.0,3.77026261]
[1723751305467,0.08749,57142.0,57137.0,0.087495]
[1723751305665,0.3608,57144.0,57133.0,3.85928461]
[1723751305964,0.3608,57144.0,57143.0,0.087487]
[1723751306165,0.3608,57154.0,57147.0,0.087481]
[1723751306461,0.3608,57154.0,57144.0,0.06899046]
[1723751306664,0.08767001,57148.0,57144.0,0.06899046]
[1723751306861,0.08767001,57148.0,57143.0,0.3608]
[1723751306862,0.52515101,57148.0,57143.0,0.3608]
[1723751307063,0.087485,57144.0,57143.0,0.3608]
[1723751307761,0.08767001,57148.0,57143.0,0.3608]
[1723751307963,0.00019101,57148.0,57143.0,0.3608]
[1723751308164,0.00019101,57148.0,57142.0,0.07518005]
[1723751308560,0.087485,57144.0,57142.0,0.07518005]
[1723751309159,0.087485,57144.0,57142.0,0.00618959]
[1723751309354,0.087485,57144.0,57137.0,0.36948433]
[1723751309355,0.00019101,57148.0,57138.0,0.08622606]
[1723751309569,0.00019101,57148.0,57146.0,0.087482]
[1723751309864,0.00019101,57148.0,57144.0,0.08622606]
[1723751310064,0.00019101,57148.0,57143.0,0.08622606]
[1723751310364,0.00019101,57148.0,57147.0,0.06965305]
[1723751310668,0.00019101,57148.0,57142.0,0.44702606]
[1723751310873,0.36099101,57148.0,57146.0,0.06965801]
[1723751311167,0.00019101,57148.0,57145.0,0.06965832]
[1723751311475,0.00019101,57148.0,57143.0,0.06965832]
[1723751311476,0.44847001,57148.0,57143.0,0.06965832]
[1723751311663,0.087485,57144.0,57143.0,0.06969645]
[1723751312254,0.087485,57144.0,57139.0,0.087493]
[1723751312255,0.087487,57143.0,57142.0,0.06969645]
[1723751312864,0.087487,57143.0,57139.0,0.087493]
[1723751313061,0.05368105,57147.0,57139.0,0.087493]
[1723751313257,0.05368105,57147.0,57138.0,0.00618376]
[1723751313463,0.087491,57141.0,57137.0,0.3608]
[1723751313658,0.087491,57141.0,57137.0,0.448296]
[1723751313863,0.00019101,57148.0,57137.0,0.50675314]
[1723751314063,0.00019101,57148.0,57142.0,0.3608]
[1723751314260,0.087483,57146.0,57144.0,0.087484]
[1723751314455,0.08767101,57148.0,57142.0,0.3608]
[1723751314667,0.00019101,57148.0,57146.0,0.087482]
[1723751314857,0.00019101,57148.0,57142.0,0.3608]
[1723751314858,0.087484,57145.0,57142.0,0.448288]
[1723751315063,0.00019101,57148.0,57147.0,0.087481]
[1723751315258,0.00019101,57148.0,57147.0,0.448281]
[1723751315463,0.15208935,57164.0,57163.0,0.087456]
[1723751315671,0.15208935,57170.0,57163.0,0.8716]
[1723751315963,0.3608,57184.0,57168.0,0.3608]
[1723751315964,0.16700889,57177.0,57168.0,0.3608]
[1723751316162,0.18488092,57179.0,57178.0,0.087433]
[1723751316375,0.18488092,57179.0,57178.0,0.448233]
[1723751316376,0.05377372,57179.0,57178.0,0.448233]
[1723751316675,0.00013035,57179.0,57178.0,0.448233]
[1723751319064,0.00013035,57179.0,57178.0,4.305666]
[1723751319265,0.00013035,57179.0,57178.0,5.41487857]
[1723751319469,0.00013035,57179.0,57178.0,4.22429711]
[1723751322667,0.00013035,57179.0,57178.0,4.31173011]
[1723751323063,0.00013035,57179.0,57178.0,5.38641011]
[1723751324067,0.00013035,57179.0,57178.0,0.45429711]
[1723751324266,0.00013035,57179.0,57178.0,0.36686411]
[1723751324467,0.00013035,57179.0,57178.0,0.45429711]
[1723751324775,0.00013035,57179.0,57178.0,1.37897711]
[1723751324978,0.00013035,57179.0,57178.0,1.52897711]
[1723751325174,0.00013035,57179.0,57178.0,1.61641011]
[1723751326278,0.00013035,57179.0,57178.0,0.60429711]
[1723751326677,0.00013035,57179.0,57178.0,1.52897711]
[1723751327887,0.00013035,57179.0,57178.0,0.60429711]
[1723751329180,0.00013035,57179.0,57178.0,0.51686411]
[1723751329372,0.00013035,57179.0,57178.0,0.36686411]
[1723751329578,0.00013035,57179.0,57178.0,0.00606411]
[1723751329781,0.08756235,57179.0,57173.0,0.36106238]
[1723751329985,0.00013035,57179.0,57178.0,0.3608]
[1723751330178,0.00013035,57179.0,57178.0,0.448233]
[1723751330490,0.00013035,57179.0,57178.0,1.132913]
[1723751330984,0.00013035,57179.0,57178.0,1.532913]
[1723751331184,0.00013035,57179.0,57178.0,0.608233]
[1723751331695,0.00013035,57179.0,57178.0,1.532913]
[1723751331985,0.00013035,57179.0,57178.0,1.620346]
[1723751332188,0.00013035,57179.0,57178.0,1.707779]
[1723751332372,0.00013035,57179.0,57178.0,5.477779]
[1723751332579,0.087392,57205.0,57199.0,0.087401]
[1723751332785,0.087392,57205.0,57204.0,0.3608]
[1723751333084,0.65404,57211.0,57204.0,0.3608]
[1723751333381,0.087384,57210.0,57209.0,0.3608]
[1723751333787,0.611784,57210.0,57209.0,0.3608]
[1723751334002,1.372584,57210.0,57196.0,0.00026238]
[1723751334178,0.087392,57205.0,57196.0,0.00026238]
[1723751334373,0.087384,57210.0,57197.0,0.3608]
[1723751334579,0.087386,57209.0,57201.0,0.087397]
[1723751334777,0.087388,57208.0,57201.0,0.087397]
[1723751334982,0.087389,57207.0,57201.0,0.087397]
[1723751335290,0.087404,57197.0,57196.0,0.00026238]
[1723751335685,1.011924,57197.0,57196.0,0.00026238]
[1723751335879,0.92452,57197.0,57196.0,0.00026238]
[1723751336074,0.26645242,57197.0,57196.0,0.00026238]
[1723751336278,0.09640644,57197.0,57196.0,0.00026238]
[1723751336479,0.24850296,57197.0,57196.0,0.08766838]
[1723751336685,0.19487857,57197.0,57196.0,0.08766838]
[1723751336882,0.04278205,57197.0,57196.0,0.08766838]
[1723751337080,0.09640644,57197.0,57196.0,0.08766838]
[1723751337281,0.24850296,57197.0,57196.0,0.00026238]
[1723751337583,1.43047294,57197.0,57196.0,0.00026238]
[1723751337782,0.087412,57192.0,57191.0,0.00595976]
[1723751337988,0.45720644,57192.0,57184.0,0.3608]
[1723751338181,0.16902378,57188.0,57184.0,0.36684919]
[1723751338383,0.16902378,57185.0,57184.0,0.36684919]
[1723751338693,0.26543022,57185.0,57184.0,0.36684919]
[1723751339084,0.18382844,57185.0,57184.0,0.36684919]
[1723751339589,0.09640644,57185.0,57184.0,0.36684919]
[1723751339786,0.09640644,57185.0,57184.0,0.45427319]
[1723751339977,0.18488092,57188.0,57186.0,0.08742]
[1723751340187,0.09642098,57187.0,57186.0,0.08742]
[1723751340488,0.2813019,57187.0,57186.0,0.08742]
[1723751340790,0.00026159,57190.0,57189.0,0.087416]
[1723751340987,0.16939396,57190.0,57189.0,1.008216]
[1723751341193,0.16939244,57200.0,57199.0,0.087401]
[1723751341386,0.18633257,57206.0,57201.0,0.087398]
[1723751341583,0.18633257,57206.0,57199.0,0.36952264]
[1723751341778,0.18633257,57202.0,57199.0,0.3608]
[1723751341985,0.18633257,57201.0,57199.0,0.3608]
[1723751342185,0.18633257,57201.0,57199.0,0.3669999]
[1723751342385,0.18633257,57202.0,57199.0,0.3669999]
[1723751342587,0.16952828,57200.0,57199.0,0.3669999]
[1723751342784,0.087395,57203.0,57199.0,0.3669999]
[1723751342785,0.18633257,57203.0,57199.0,0.3669999]
[1723751343089,0.18633257,57204.0,57199.0,0.4633384]
[1723751343385,0.08739,57207.0,57199.0,0.4633384]
[1723751343689,0.4092,57211.0,57208.0,0.087386]
[1723751344089,0.4092,57211.0,57210.0,0.087384]
[1723751344278,0.448176,57216.0,57210.0,0.087384]
[1723751344792,0.087377,57215.0,57207.0,0.0016]
[1723751344987,0.087377,57215.0,57206.0,0.3608]
[1723751345288,0.3608,57217.0,57207.0,3.77]
[1723751345483,0.3608,57217.0,57215.0,0.087376]
[1723751345886,0.51596,57226.0,57207.0,3.77026238]
[1723751346195,0.4286,57226.0,57211.0,0.3608]
[1723751346388,0.4286,57226.0,57216.0,0.087375]
[1723751346585,0.4286,57226.0,57218.0,0.3608]
[1723751346788,0.3608,57223.0,57218.0,0.3608]
[1723751347192,0.087371,57219.0,57218.0,0.3608]
[1723751347389,0.087379,57214.0,57211.0,0.3608]
[1723751347588,0.52428,57222.0,57211.0,0.3608]
[1723751347589,0.3608,57217.0,57211.0,0.3608]
[1723751347893,0.087381,57212.0,57211.0,0.36674973]
[1723751348096,0.448175,57217.0,57211.0,0.36674973]
[1723751348393,0.3608,57217.0,57211.0,0.36674973]
[1723751348593,0.3608,57217.0,57211.0,0.00594973]
[1723751348794,0.3608,57217.0,57208.0,0.3608]
[1723751349786,0.3608,57210.0,57207.0,0.00026238]
[1723751349984,0.087406,57196.0,57180.0,0.3608]
[1723751350296,0.087406,57196.0,57182.0,0.087426]
[1723751350297,0.087419,57188.0,57182.0,0.087426]
[1723751350496,0.3608,57190.0,57180.0,0.3608]
[1723751350796,0.3608,57190.0,57180.0,0.36692492]
[1723751350991,0.087428,57182.0,57180.0,0.36692492]
[1723751351195,0.00018243,57181.0,57180.0,0.00612492]
[1723751351387,0.08761243,57181.0,57175.0,0.087437]
[1723751351588,0.3608,57178.0,57175.0,0.087437]
[1723751351791,0.3608,57178.0,57172.0,0.00026214]
[1723751352195,0.00044403,57181.0,57172.0,0.00026214]
[1723751352387,0.087437,57176.0,57172.0,0.08770414]
[1723751352985,0.00044403,57181.0,57180.0,0.08743]
[1723751353185,0.00044403,57181.0,57172.0,0.00026214]
[1723751353392,0.087434,57178.0,57172.0,0.00026214]
[1723751353585,0.00044403,57181.0,57172.0,0.00026214]
[1723751353784,0.00044403,57181.0,57174.0,0.3608]
[1723751353995,0.00044403,57181.0,57179.0,0.087431]
[1723751354184,0.08742,57187.0,57179.0,0.087431]
[1723751354185,0.3608,57189.0,57180.0,0.08743]
[1723751354387,0.087386,57209.0,57180.0,0.08743]
[1723751354388,0.3608,57208.0,57197.0,0.087403]
[1723751354693,0.3608,57198.0,57192.0,0.3608]
[1723751354897,0.08741,57193.0,57192.0,0.3608]
[1723751356488,0.3608,57198.0,57197.0,0.087404]
[1723751356688,0.3608,57198.0,57197.0,0.09615354]
[1723751357091,0.3212,57221.0,57197.0,0.09615354]
[1723751357092,0.087383,57211.0,57197.0,0.00874954]
[1723751357397,0.885071,57219.0,57197.0,0.3608]
[1723751357398,0.087381,57212.0,57197.0,0.3608]
[1723751357596,0.087384,57211.0,57197.0,0.36963086]
[1723751357795,0.3608,57214.0,57203.0,0.087394]
[1723751357995,0.087393,57204.0,57199.0,0.00026214]
[1723751358189,0.087393,57204.0,57198.0,0.00152]
[1723751358398,0.3608,57203.0,57198.0,0.0060842]
[1723751358594,0.3608,57203.0,57191.0,0.3608]
[1723751358794,0.087412,57192.0,57191.0,0.36687399]
[1723751359200,0.087397,57202.0,57191.0,0.36687399]
[1723751359401,0.00026214,57197.0,57191.0,0.36687399]
[1723751359704,0.087412,57192.0,57191.0,0.3608]
[1723751359907,0.087412,57192.0,57186.0,0.00629963]
[1723751359908,0.087419,57187.0,57186.0,0.00629963]
[1723751360109,0.00026214,57197.0,57186.0,0.00629963]
[1723751360289,0.08741,57194.0,57189.0,0.087415]
[1723751360495,0.087416,57190.0,57186.0,0.00629963]
[1723751360802,0.087419,57187.0,57186.0,0.00026214]
[1723751361005,0.3608,57188.0,57186.0,0.00026214]
[1723751361006,0.448219,57188.0,57186.0,0.00026214]
[1723751362206,0.3608,57195.0,57186.0,0.00026214]
[1723751362705,0.087413,57192.0,57186.0,0.00026214]
[1723751363201,0.087413,57192.0,57187.0,0.03847069]
[1723751363400,0.087413,57192.0,57186.0,0.00026214]
[1723751363401,0.3608,57195.0,57186.0,0.00026214]
[1723751363607,0.00026214,57197.0,57188.0,0.3608]
[1723751363799,0.00026214,57197.0,57195.0,0.087406]
[1723751363994,0.00026214,57197.0,57196.0,0.03846411]
[1723751364210,0.3608,57207.0,57196.0,0.18846411]
[1723751364408,0.3608,57207.0,57197.0,0.03846411]
[1723751364702,0.3608,57207.0,57204.0,0.087392]
[1723751364906,0.08738,57213.0,57205.0,0.12585511]
[1723751365203,0.3608,57216.0,57210.0,0.06969645]
[1723751365406,0.087378,57215.0,57210.0,0.06969645]
[1723751365605,0.087381,57212.0,57210.0,0.06969645]
[1723751366107,0.087378,57214.0,57210.0,0.06969645]
[1723751366311,0.087378,57214.0,57209.0,0.06969645]
[1723751366508,0.3608,57216.0,57210.0,0.06969645]
[1723751366809,0.087378,57214.0,57213.0,0.06969645]
[1723751367000,0.3608,57216.0,57209.0,0.06969645]
[1723751367196,0.3608,57216.0,57208.0,0.06969645]
[1723751367505,0.087389,57207.0,57206.0,0.06969645]
[1723751367805,0.3608,57210.0,57203.0,0.0068899]
[1723751368105,0.087389,57207.0,57206.0,0.06946629]
[1723751368301,0.087393,57204.0,57203.0,0.00026214]
[1723751368497,0.535586,57204.0,57203.0,0.00026214]
[1723751368709,1.460026,57204.0,57203.0,0.00026214]
[1723751369101,1.372633,57204.0,57194.0,0.3608]
[1723751369296,0.087407,57195.0,57194.0,0.3608]
[1723751369502,0.087407,57195.0,57192.0,0.06946629]
[1723751369503,0.08741,57193.0,57192.0,0.06946629]
[1723751369802,0.087419,57187.0,57186.0,0.06946629]
[1723751369999,0.087422,57185.0,57184.0,0.06946629]
[1723751370300,0.087422,57185.0,57184.0,0.00647643]
[1723751370508,0.087426,57183.0,57182.0,0.06946629]
[1723751370808,0.087426,57183.0,57182.0,0.10793852]
[1723751371108,0.3608,57188.0,57181.0,0.00026214]
[1723751371109,0.087427,57182.0,57181.0,0.00026214]
[1723751372109,0.087421,57186.0,57182.0,0.087426]
[1723751372412,0.3608,57188.0,57182.0,0.087426]
[1723751372413,0.087423,57185.0,57182.0,0.087426]
[1723751372609,0.3608,57188.0,57182.0,0.3608]
[1723751372799,0.3608,57188.0,57183.0,0.1079374]
[1723751373006,0.00026214,57192.0,57187.0,0.3608]
[1723751373307,0.00026214,57192.0,57191.0,0.087413]
[1723751373613,0.00026214,57192.0,57191.0,0.12587669]
[1723751373810,0.08767414,57192.0,57191.0,0.03846369]
[1723751374108,1.28562214,57192.0,57183.0,0.06946782]
[1723751374319,1.28562214,57192.0,57179.0,0.3608]
[1723751374320,0.174852,57183.0,57182.0,0.06946782]
[1723751374608,0.087427,57182.0,57179.0,0.43026782]
[1723751375006,0.087427,57182.0,57179.0,0.06946782]
[1723751375208,0.087427,57182.0,57172.0,0.3608]
[1723751375209,0.174854,57182.0,57176.0,0.06946782]
[1723751375400,0.174854,57182.0,57177.0,0.00661464]
[1723751375804,0.174854,57182.0,57175.0,0.06946782]
[1723751376014,0.3608,57185.0,57180.0,0.3608]
[1723751376207,0.3608,57185.0,57181.0,0.06972996]
[1723751376407,0.00026214,57192.0,57182.0,0.06946782]
[1723751376408,0.087414,57191.0,57182.0,0.06946782]
[1723751376608,0.00026214,57192.0,57191.0,0.087413]
[1723751377214,0.00026214,57192.0,57188.0,4.21862606]
[1723751377416,0.00026214,57192.0,57189.0,0.03846439]
[1723751377716,0.04395706,57198.0,57190.0,0.61862524]
[1723751377919,0.04395706,57198.0,57197.0,0.3608]
[1723751378508,0.04395706,57198.0,57197.0,0.43032577]
[1723751378708,0.04395706,57198.0,57197.0,0.3608]
[1723751379110,0.087407,57195.0,57194.0,0.06952577]
[1723751379308,0.088284,57198.0,57192.0,0.06952577]
[1723751379509,0.088284,57198.0,57190.0,0.3608]
[1723751379510,0.087404,57198.0,57195.0,0.06952577]
[1723751379909,0.087404,57198.0,57188.0,0.00664888]
[1723751379910,0.087409,57194.0,57193.0,0.06952577]
[1723751380115,0.087409,57194.0,57188.0,0.00664888]
[1723751380116,0.087416,57189.0,57188.0,0.00664888]
[1723751380318,0.087416,57189.0,57186.0,0.06952577]
[1723751380319,0.087418,57188.0,57186.0,0.06952577]
[1723751380618,0.00088,57194.0,57183.0,0.3608]
[1723751380824,0.00088,57194.0,57181.0,0.0864882]
[1723751380825,0.087425,57184.0,57182.0,0.087426]
[1723751381117,0.087427,57182.0,57181.0,0.0069045]
[1723751381415,0.3608,57184.0,57174.0,0.06960761]
[1723751381617,0.087439,57174.0,57173.0,0.06960761]
[1723751381806,0.3608,57178.0,57171.0,0.00661432]
[1723751381807,0.087441,57173.0,57172.0,0.06960761]
[1723751382011,0.087441,57173.0,57171.0,0.087443]
[1723751382012,0.087442,57172.0,57171.0,0.087443]
[1723751382220,0.087444,57171.0,57168.0,0.00661106]
[1723751382415,0.174874,57176.0,57166.0,0.36106214]
[1723751382607,0.087437,57176.0,57175.0,0.0695933]
[1723751383621,0.087441,57173.0,57172.0,0.0695933]
[1723751384218,0.00026214,57177.0,57166.0,0.36106214]
[1723751384219,0.087442,57172.0,57171.0,0.0695933]
[1723751384416,0.087444,57171.0,57170.0,0.0695933]
[1723751385517,0.087438,57175.0,57170.0,0.0695933]
[1723751385715,0.087438,57175.0,57174.0,0.087439]
[1723751386219,0.08744,57174.0,57171.0,0.0695933]
[1723751386409,0.08744,57174.0,57171.0,0.1570363]
[1723751387011,0.08744,57174.0,57171.0,0.0695933]
[1723751387214,0.087436,57176.0,57173.0,0.087441]
[1723751387614,0.087438,57175.0,57173.0,0.1570343]
[1723751387815,0.087439,57174.0,57171.0,0.0695933]
[1723751388014,0.00026214,57177.0,57172.0,0.0695933]
[1723751388227,0.00026214,57177.0,57173.0,0.08744]
[1723751388520,0.087439,57175.0,57173.0,3.77]
[1723751388819,0.00026214,57177.0,57176.0,0.087436]
[1723751389021,0.087416,57190.0,57176.0,0.5008]
[1723751389221,0.3608,57194.0,57188.0,0.087417]
[1723751389419,0.3608,57194.0,57192.0,0.087412]
[1723751389722,0.087404,57197.0,57193.0,0.087409]
[1723751389918,0.087408,57195.0,57189.0,0.087416]
[1723751390117,0.087408,57195.0,57191.0,0.05213113]
[1723751390320,0.3608,57199.0,57194.0,0.087409]
[1723751390518,0.3608,57199.0,57198.0,0.05213113]
[1723751390713,0.88528,57199.0,57196.0,0.05212414]
[1723751390916,0.087409,57194.0,57193.0,0.05212414]
[1723751391111,0.08741,57193.0,57192.0,0.05212414]
[1723751391910,0.3608,57199.0,57193.0,0.08741]
[1723751392118,0.3608,57199.0,57196.0,0.05212414]
[1723751392317,0.087406,57196.0,57192.0,0.05212414]
[1723751392617,0.3608,57194.0,57193.0,0.05212414]
[1723751392819,0.3608,57194.0,57191.0,0.05212414]
[1723751393019,0.448209,57194.0,57191.0,0.05212414]
[1723751393526,0.087413,57191.0,57190.0,0.05212414]
[1723751394029,0.3608,57194.0,57189.0,0.00672976]
[1723751394030,0.087415,57190.0,57189.0,0.00672976]
[1723751394212,0.087415,57190.0,57189.0,0.05886634]
[1723751394411,0.087415,57190.0,57189.0,0.05239896]
[1723751394412,1.011975,57190.0,57189.0,0.05239896]
[1723751394616,1.011975,57190.0,57189.0,0.00026238]
[1723751394816,1.011975,57190.0,57177.0,0.3608]
[1723751394817,0.087438,57175.0,57173.0,0.06951328]
[1723751395013,0.3608,57174.0,57170.0,0.06951328]
[1723751395224,0.087442,57172.0,57171.0,0.05216307]
[1723751395414,0.3608,57174.0,57170.0,0.05216307]
[1723751395625,0.087448,57169.0,57166.0,0.06951328]
[1723751395817,0.3608,57174.0,57167.0,0.10799648]
[1723751396027,0.087444,57171.0,57170.0,0.05217369]
[1723751396326,0.00026238,57173.0,57168.0,0.06951328]
[1723751396528,0.00026238,57173.0,57170.0,0.05217348]
[1723751396820,0.087445,57170.0,57169.0,0.05217348]
[1723751397517,0.00026238,57173.0,57165.0,0.15696628]
[1723751397719,0.00026238,57173.0,57169.0,0.05220026]
[1723751397918,0.36106238,57173.0,57169.0,0.05220026]
[1723751398524,0.087445,57170.0,57169.0,0.05220026]
[1723751398722,0.08745,57168.0,57165.0,0.06951328]
[1723751398929,0.3608,57166.0,57165.0,0.06951328]
[1723751399231,0.448252,57166.0,57165.0,0.06951328]
[1723751399522,0.087453,57165.0,57164.0,0.06951328]
[1723751399726,0.087453,57165.0,57162.0,0.08771938]
[1723751399727,0.087456,57163.0,57162.0,0.00026238]
[1723751400023,0.174912,57163.0,57162.0,0.00026238]
[1723751400216,0.3608,57164.0,57156.0,0.05220657]
[1723751400418,0.3608,57164.0,57131.0,0.12071649]
[1723751400419,0.087499,57135.0,57131.0,0.087504]
[1723751400621,0.087499,57135.0,57125.0,0.5650617]
[1723751400622,0.343608,57134.0,57133.0,0.087502]
[1723751400821,0.087483,57146.0,57133.0,0.53382676]
[1723751401124,0.24484,57149.0,57145.0,0.087483]
[1723751401329,0.00012962,57148.0,57145.0,0.087483]
[1723751401522,0.00012962,57148.0,57133.0,0.00874676]
[1723751401523,0.00012962,57148.0,57147.0,0.087481]
[1723751401826,0.3608,57157.0,57147.0,0.087481]
[1723751401827,0.087453,57165.0,57147.0,0.612441]
[1723751402032,0.3608,57168.0,57165.0,0.087453]
[1723751402225,0.3608,57168.0,57153.0,0.3608]
[1723751402226,0.7608,57168.0,57157.0,0.05213424]
[1723751402522,0.3608,57168.0,57156.0,0.05213424]
[1723751402729,0.3608,57168.0,57157.0,0.05213424]
[1723751402730,9.599e-05,57167.0,57157.0,0.05213424]
[1723751403022,9.599e-05,57167.0,57166.0,0.087452]
[1723751403229,0.087459,57161.0,57158.0,0.05213424]
[1723751403421,0.087459,57161.0,57157.0,0.00026238]
[1723751403422,0.087464,57158.0,57157.0,0.00026238]
[1723751404020,0.3608,57162.0,57160.0,0.08746]
[1723751404225,9.599e-05,57167.0,57157.0,0.13986062]
[1723751404423,0.087458,57162.0,57158.0,0.087463]
[1723751404627,9.599e-05,57167.0,57162.0,0.087458]
[1723751404825,9.599e-05,57167.0,57166.0,0.087452]
[1723751405125,0.36106238,57168.0,57167.0,0.08745]
[1723751405314,0.36106238,57168.0,57163.0,0.3608]
[1723751405315,0.00026238,57168.0,57163.0,0.43031233]
[1723751405514,0.00026238,57168.0,57163.0,0.15696733]
[1723751405727,0.00026238,57168.0,57167.0,0.08745]
[1723751406421,0.00026238,57168.0,57167.0,1.01221]
[1723751406626,0.00026238,57168.0,57167.0,0.15696233]
[1723751406929,0.3608,57177.0,57167.0,0.52476]
[1723751407120,0.087441,57173.0,57171.0,0.3608]
[1723751407322,0.3608,57177.0,57171.0,0.41289726]
[1723751407525,0.087442,57172.0,57171.0,0.3608]
[1723751407927,0.3608,57177.0,57167.0,0.05210632]
[1723751408228,0.087448,57168.0,57166.0,0.36723694]
[1723751408425,0.36106238,57177.0,57166.0,0.36723694]